fUST/lending_fUST_20250219
["ID","MTS","AMOUNT","RATE_DAILY","PERIOD"]
[353576741,1739929839227,-424.63677276,0.00017639,2]
[353576742,1739929839236,-502.43334708,0.00017639,2]
[353576743,1739929839246,-500.26342173,0.00017639,2]
[353576744,1739929839257,-502.45770361,0.00017639,2]
[353576745,1739929839267,-423.5003499,0.0001764,2]
[353576746,1739929839276,-500.0,0.00017689,2]
[353576747,1739929839286,-690.67,0.00017689,2]
[353576748,1739929839295,-500.0,0.00017698,2]
[353576749,1739929839305,-150.3,0.00017699,2]
[353576750,1739929839315,-1971.0,0.00017699,2]
[353576751,1739929839324,-538.0,0.00017699,2]
[353576752,1739929839333,-2290.0,0.00017699,2]
[353576753,1739929839343,-150.0,0.00017699,2]
[353576754,1739929839352,-300.0,0.000177,7]
[353576755,1739929839362,-690.67,0.0001772,2]
[353576756,1739929839371,-19172.2123096,0.00017812,2]
[353576757,1739929839381,-22621.08598677,0.0001782,2]
[353576758,1739929839391,-5018.54109369,0.00017822,2]
[353576759,1739929839400,-188.72902132,0.0001789,2]
[353576760,1739929839410,-500.0,0.00017899,2]
[353576761,1739929839419,-690.67,0.00017899,2]
[353576762,1739929839429,-3000.0,0.000179,2]
[353576763,1739929839439,-3000.0,0.000179,2]
[353576764,1739929839448,-12892.12822,0.000179,2]
[353576765,1739929839458,-6275.65378036,0.000179,2]
[353576766,1739929839468,-167.07184939,0.000179,2]
[353576767,1739929839477,-3564.4701804,0.000179,2]
[353576768,1739929839487,-154.81350398,0.000179,2]
[353576769,1739929839496,-154.81350398,0.000179,2]
[353576770,1739929839506,-154.81350398,0.000179,2]
[353576771,1739929839515,-154.81350398,0.000179,2]
[353576772,1739929839525,-154.81350398,0.000179,2]
[353576773,1739929839535,-154.81350398,0.000179,2]
[353576774,1739929839544,-154.81350398,0.000179,2]
[353576776,1739929839554,-154.81350398,0.000179,2]
[353576778,1739929839563,-154.81350398,0.000179,2]
[353576780,1739929839573,-154.81350398,0.000179,2]
[353576782,1739929839582,-154.81350398,0.000179,2]
[353576784,1739929839591,-154.81350398,0.000179,2]
[353576786,1739929839601,-154.81350398,0.000179,2]
[353576788,1739929839610,-154.81350398,0.000179,2]
[353576790,1739929839619,-154.81350398,0.000179,2]
[353576792,1739929839628,-154.81350398,0.000179,2]
[353576794,1739929839637,-154.81,0.000179,2]
[353576796,1739929839646,-307.04678289,0.000179,2]
[353576798,1739929839655,-307.04678289,0.000179,2]
[353576800,1739929839665,-307.04678289,0.000179,2]
[353576802,1739929839675,-307.04678289,0.000179,2]
[353576804,1739929839684,-307.04678289,0.000179,2]
[353576806,1739929839694,-307.04678289,0.000179,2]
[353576808,1739929839703,-307.04678289,0.000179,2]
[353576810,1739929839712,-307.04678289,0.000179,2]
[353576813,1739929839722,-307.04678289,0.000179,2]
[353576816,1739929839731,-307.04678289,0.000179,2]
[353576819,1739929839741,-307.04678289,0.000179,2]
[353576822,1739929839750,-307.04678289,0.000179,2]
[353576825,1739929839759,-307.04678289,0.000179,2]
[353576828,1739929839769,-307.04678289,0.000179,2]
[353576829,1739929839778,-307.04678289,0.000179,2]
[353576832,1739929839787,-307.04678289,0.000179,2]
[353576834,1739929839797,-307.04678289,0.000179,2]
[353576836,1739929839806,-307.04678289,0.000179,2]
[353576837,1739929839815,-307.04678289,0.000179,2]
[353576839,1739929839824,-307.04,0.000179,2]
[353576841,1739929839834,-193.55026735,0.000179,2]
[353576844,1739929839843,-193.55026735,0.000179,2]
[353576846,1739929839853,-193.55026735,0.000179,2]
[353576848,1739929839862,-193.55026735,0.000179,2]
[353576849,1739929839872,-193.55026735,0.000179,2]
[353576852,1739929839881,-193.55026735,0.000179,2]
[353576856,1739929839891,-193.55026735,0.000179,2]
[353576859,1739929839900,-193.55026735,0.000179,2]
[353576861,1739929839909,-193.55026735,0.000179,2]
[353576864,1739929839918,-193.55026735,0.000179,2]
[353576867,1739929839927,-193.55026735,0.000179,2]
[353576870,1739929839937,-193.55026735,0.000179,2]
[353576874,1739929839947,-193.55026735,0.000179,2]
[353576876,1739929839957,-193.55026735,0.000179,2]
[353576879,1739929839966,-193.55026735,0.000179,2]
[353576882,1739929839975,-193.55026735,0.000179,2]
[353576886,1739929839985,-193.55026735,0.000179,2]
[353576889,1739929839995,-193.55026735,0.000179,2]
[353576891,1739929840005,-193.55026735,0.000179,2]
[353576893,1739929840014,-193.55,0.000179,2]
[353576895,1739929840023,-451.61729048,0.000179,2]
[353576896,1739929840033,-451.61729048,0.000179,2]
[353576898,1739929840043,-451.61729048,0.000179,2]
[353576900,1739929840056,-451.61729048,0.000179,2]
[353576902,1739929840066,-451.61729048,0.000179,2]
[353576904,1739929840076,-451.61729048,0.000179,2]
[353576906,1739929840085,-451.61729048,0.000179,2]
[353576909,1739929840096,-163.18,0.000179,31]
[353576911,1739929840106,-163.18,0.000179,31]
[353576912,1739929840115,-163.18,0.000179,31]
[353576914,1739929840126,-451.61729048,0.000179,2]
[353576916,1739929840136,-163.18,0.000179,31]
[353576918,1739929840145,-163.18,0.000179,31]
[353576920,1739929840155,-163.18,0.000179,31]
[353576922,1739929840164,-163.18,0.000179,31]
[353576924,1739929840174,-451.61729048,0.000179,2]
[353576926,1739929840183,-451.61729048,0.000179,2]
[353576928,1739929840193,-451.61729048,0.000179,2]
[353576930,1739929840203,-451.61729048,0.000179,2]
[353576932,1739929840212,-451.61729048,0.000179,2]
[353576933,1739929840221,-451.61729048,0.000179,2]
[353576934,1739929840230,-451.61729048,0.000179,2]
[353576935,1739929840240,-451.61729048,0.000179,2]
[353576936,1739929840249,-451.61729048,0.000179,2]
[353576937,1739929840258,-451.61729048,0.000179,2]
[353576938,1739929840267,-451.61729048,0.000179,2]
[353576940,1739929840277,-451.61,0.000179,2]
[353576942,1739929840286,-340.0,0.0001794,2]
[353576944,1739929840296,-500.16756831,0.00017973,2]
[353576946,1739929840306,-500.0,0.00017973,2]
[353576948,1739929840316,-500.50114084,0.00017973,2]
[353576950,1739929840326,-275.18741632,0.00017973,2]
[353576952,1739929840336,-500.0,0.00017973,2]
[353576954,1739929840345,-500.0,0.00017973,2]
[353576956,1739929840355,-19172.2123096,0.00017979,2]
[353576958,1739929840364,-500.0,0.0001798,2]
[353576960,1739929840373,-500.0,0.0001798,2]
[353576962,1739929840383,-690.67,0.0001798,2]
[353576964,1739929840392,-690.67,0.0001798,2]
[353576966,1739929840401,-38344.4246193,0.0001798,2]
[353576968,1739929840411,-500.0,0.00017989,2]
[353576970,1739929840420,-500.0,0.00017989,2]
[353576972,1739929840430,-365.13758672,0.00017989,2]
[353576974,1739929840440,-690.67,0.00017989,2]
[353576977,1739929840450,-690.67,0.00017989,2]
[353576979,1739929840459,-690.67,0.00017989,2]
[353576981,1739929840468,-690.67,0.00017989,2]
[353576983,1739929840477,-690.67,0.00017989,2]
[353576985,1739929840487,-690.67,0.00017989,2]
[353576987,1739929840496,-690.67,0.00017989,2]
[353576989,1739929840505,-690.67,0.00017989,2]
[353576991,1739929840514,-690.67,0.00017989,2]
[353576993,1739929840523,-690.67,0.00017989,2]
[353576995,1739929840532,-690.67,0.00017989,2]
[353576997,1739929840541,-690.67,0.00017989,2]
[353576999,1739929840550,-690.78659006,0.00017989,2]
[353577001,1739929840560,-38344.4246193,0.0001799,2]
[353577003,1739929840569,-95861.0615482,0.0001799,2]
[353577005,1739929840579,-201.35264226,0.00017999,2]
[353577007,1739929840587,-160.0,0.00017999,2]
[353577009,1739929840596,-160.0,0.00017999,2]
[353577011,1739929840605,-86672.89699939,0.00018,5]
[353577013,1739929840615,-12440.64508708,0.00018,5]
[353577015,1739929840624,-257463.80258783,0.00018,15]
[353577017,1739929840633,-27933.69,0.00018,2]
[353577019,1739929840642,-2000.0,0.00018,2]
[353577021,1739929840651,-2000.0,0.00018,2]
[353577023,1739929840660,-2000.0,0.00018,2]
[353577025,1739929840670,-10008.91,0.00018,2]
[353577027,1739929840679,-189.0,0.00018,2]
[353577029,1739929840689,-99512.27143017,0.00018,2]
[353577031,1739929840705,-9157.52649235,0.00018,2]
[353577033,1739929840717,-380.26151072,0.00018,2]
[353577038,1739929840748,-396.0,0.00017699,2]
[353577039,1739929840757,-15674.48553081,0.00018,2]
[353577041,1739929840767,-155.0,0.00018,30]
[353577042,1739929840776,-3535273.09518945,0.00018,15]
[353577043,1739929840788,-441.39314169,0.00018,15]
[353577044,1739929840799,-493.28256153,0.00018,15]
[353577045,1739929840811,-490.40668275,0.00018,15]
[353577046,1739929840825,-1128.72,0.00018,15]
[353577068,1739929842934,-500.0,0.00013698,2]
[353577069,1739929842943,-0.71119932,0.0001378,2]
[353577077,1739929845933,-537.60156162,0.0001378,2]
[353577078,1739929845943,-185.3585877,0.00014359,2]
[353577082,1739930420677,264.1059,9.041e-05,2]
[353577085,1739930756117,-328.71661415,0.00010849,2]
[353577086,1739930757082,-123.95338585,0.00010849,2]
[353577087,1739930757102,-452.67,0.00010959,2]
[353577088,1739930757123,-187.023742,0.00012762,2]
[353577089,1739930757143,-300.0,0.0001278,2]
[353577090,1739930757163,-44.87282253,0.00012805,2]
[353577091,1739930825117,-142.15091947,0.00012805,2]
[353577092,1739930825137,-187.023742,0.00012848,2]
[353577093,1739930825158,-187.023742,0.0001289,2]
[353577094,1739930825178,-526.1048162,0.00012909,2]
[353577095,1739930825202,-636.9940973,0.00013134,2]
[353577096,1739930825222,-500.0,0.00013134,2]
[353577097,1739930825242,-514.0181736,0.00013698,2]
[353577098,1739930825263,-31.95541142,0.00013698,2]
[353577099,1739930828077,-300.0,0.00013697,2]
[353577100,1739930828099,-468.49892716,0.00013698,2]
[353577101,1739930828120,-514.82943618,0.00013698,2]
[353577102,1739930828141,-398.7504854,0.00013698,2]
[353577103,1739930828162,-226.985406,0.00013699,2]
[353577104,1739930828183,-369.4720855,0.00013815,2]
[353577105,1739930828203,-171.282416,0.00013899,2]
[353577106,1739930828225,-80.96184776,0.00013988,2]
[353577107,1739930848088,-568.24457831,0.00013711,2]
[353577108,1739930848110,-568.24457831,0.00013849,2]
[353577109,1739930848131,-568.24457831,0.00013988,2]
[353577110,1739930848151,-649.20642607,0.0001399,2]
[353577111,1739930848172,-649.20642607,0.00013993,2]
[353577112,1739930848192,-500.0,0.00013998,2]
[353577113,1739930848214,-201.66456376,0.00013998,2]
[353577114,1739930848235,-315.30700353,0.00013998,2]
[353577115,1739930848256,-501.30509379,0.00013998,2]
[353577116,1739930848278,-507.48694895,0.00013998,2]
[353577117,1739930848299,-330.25691731,0.00013998,2]
[353577118,1739930849098,-170.34879191,0.00013998,2]
[353577119,1739930849119,-502.6935749,0.00013998,2]
[353577120,1739930948120,-623.5,0.00010959,2]
[353577121,1739930948143,-821.16,0.00010959,2]
[353577122,1739930948166,-5326.09389179,0.00013858,2]
[353577123,1739930948188,-300.0,0.00013997,2]
[353577124,1739930948210,-2.88084328,0.00013998,2]
[353577125,1739930948234,-503.36313524,0.00013998,2]
[353577126,1739930948258,-500.0,0.00013998,2]
[353577127,1739930948284,-538.04,0.00013998,2]
[353577128,1739930948309,-500.0,0.00013998,2]
[353577129,1739930948335,-599.15522516,0.00013998,2]
[353577130,1739930948362,-509.33101029,0.00013998,2]
[353577131,1739930948387,-500.0,0.00013998,2]
[353577132,1739930948410,-500.0,0.00013998,2]
[353577133,1739930948435,-511.79757295,0.00013998,2]
[353577134,1739930948457,-500.0,0.00013998,2]
[353577135,1739930948480,-613.97354319,0.00013998,2]
[353577136,1739930948504,-506.10074559,0.00013998,2]
[353577137,1739930948527,-500.0,0.00013998,2]
[353577138,1739930948554,-500.0,0.00013998,2]
[353577139,1739930948579,-500.0,0.00013998,2]
[353577140,1739930948601,-500.0,0.00013998,2]
[353577141,1739930948622,-500.93178824,0.00013998,2]
[353577142,1739930948646,-521.37936738,0.00013998,2]
[353577143,1739930948669,-500.0,0.00013998,2]
[353577144,1739930948690,-508.38599202,0.00013998,2]
[353577145,1739930948713,-416.89336587,0.00013998,2]
[353577146,1739930948737,-398.40687454,0.00013998,2]
[353577147,1739930948762,-500.0,0.00013998,2]
[353577148,1739930948788,-509.10498108,0.00013998,2]
[353577149,1739930948810,-504.46148131,0.00013998,2]
[353577150,1739930948833,-509.24597684,0.00013998,2]
[353577151,1739930948858,-501.01892685,0.00013998,2]
[353577152,1739930948883,-559.99920141,0.00013998,2]
[353577153,1739930948906,-500.0,0.00013998,2]
[353577154,1739930948928,-503.7232288,0.00013998,2]
[353577155,1739930948958,-500.0,0.00013998,2]
[353577156,1739930948982,-502.41246111,0.00013998,2]
[353577157,1739930949005,-500.0,0.00013998,2]
[353577158,1739930949028,-500.0,0.00013998,2]
[353577159,1739930949052,-501.55181469,0.00013998,2]
[353577160,1739930949074,-502.15766482,0.00013998,2]
[353577161,1739930949098,-503.48252443,0.00013998,2]
[353577162,1739930949123,-500.0,0.00013998,2]
[353577163,1739930949146,-510.74303043,0.00013998,2]
[353577164,1739930949171,-501.47185371,0.00013998,2]
[353577165,1739930949193,-500.0,0.00013998,2]
[353577166,1739930949217,-500.0,0.00013998,2]
[353577167,1739930949240,-500.0,0.00013998,2]
[353577168,1739930949265,-504.59330764,0.00013998,2]
[353577169,1739930949291,-501.75571116,0.00013998,2]
[353577170,1739930949312,-500.0,0.00013999,2]
[353577171,1739930949337,-504.40041673,0.00013999,2]
[353577172,1739930949361,-501.73341867,0.00013999,2]
[353577173,1739930949385,-363.59703576,0.00013999,2]
[353577174,1739930949430,-504.9081578,0.00013999,2]
[353577175,1739930949471,-501.51689203,0.00013999,2]
[353577176,1739930949512,-500.52926777,0.00013999,2]
[353577177,1739930949549,-502.68357662,0.00013999,2]
[353577178,1739930949572,-503.89370182,0.00013999,2]
[353577179,1739930949594,-501.42556163,0.00013999,2]
[353577180,1739930949617,-500.0,0.00013999,2]
[353577181,1739930949638,-436.97721586,0.00013999,2]
[353577182,1739930949661,-501.56915082,0.00013999,2]
[353577183,1739930949682,-501.8266129,0.00013999,2]
[353577184,1739930949703,-501.84221706,0.00013999,2]
[353577185,1739930949725,-500.0,0.00013999,2]
[353577186,1739930949747,-501.12222512,0.00013999,2]
[353577187,1739930949771,-500.0,0.00013999,2]
[353577188,1739930949794,-500.0,0.00013999,2]
[353577189,1739930949816,-502.54300665,0.00013999,2]
[353577190,1739930949837,-503.13601107,0.00013999,2]
[353577191,1739930949859,-500.0,0.00013999,2]
[353577192,1739930949882,-500.59074097,0.00013999,2]
[353577193,1739930949903,-502.93819052,0.00013999,2]
[353577194,1739930949925,-503.92183621,0.00013999,2]
[353577195,1739930949946,-503.03880895,0.00013999,2]
[353577196,1739930949968,-610.26514134,0.00014079,2]
[353577197,1739930949995,-500.0,0.0001408,2]
[353577198,1739930950037,-505.21542915,0.0001408,2]
[353577199,1739930950076,-503.43455033,0.0001408,2]
[353577200,1739930950116,-500.0,0.0001408,2]
[353577201,1739930950140,-500.0,0.0001408,2]
[353577202,1739930950162,-505.13121033,0.0001408,2]
[353577203,1739930950182,-505.5850867,0.00014081,2]
[353577204,1739930950204,-205.33839763,0.00014163,2]
[353577205,1739930950229,-500.0,0.00014163,2]
[353577206,1739930950253,-500.0,0.00014163,2]
[353577207,1739930950274,-500.0,0.00014164,2]
[353577208,1739930950298,-346.04005942,0.00014245,2]
[353577209,1739930950320,-500.0,0.00014245,2]
[353577210,1739930950344,-500.0,0.00014273,2]
[353577211,1739930950369,-261.633,0.00014327,2]
[353577212,1739930950393,-359.2,0.00014327,2]
[353577213,1739930950425,-507.08258504,0.00014358,2]
[353577214,1739930950454,-500.0,0.00014358,2]
[353577215,1739930950480,-500.0,0.00014358,2]
[353577216,1739930950507,-500.0,0.00014358,2]
[353577217,1739930950536,-500.75176097,0.00014359,2]
[353577218,1739930950558,-229.44199459,0.00014359,2]
[353577219,1739930950583,-500.0,0.00014359,2]
[353577220,1739930950610,-504.6047763,0.00014359,2]
[353577221,1739930950636,-500.0,0.00014359,2]
[353577222,1739930950662,-500.0,0.00014359,2]
[353577223,1739930950691,-500.0,0.0001444,2]
[353577224,1739930950718,-208.02,0.0001444,2]
[353577225,1739930950743,-500.0,0.00014443,2]
[353577226,1739930950767,-500.0,0.00014443,2]
[353577227,1739930950790,-7438.69753278,0.00014444,2]
[353577228,1739930950814,-500.0,0.00014523,2]
[353577229,1739930950836,-501.45983264,0.00014547,2]
[353577230,1739930950861,-500.0,0.00014605,2]
[353577231,1739930950885,-500.0,0.00014687,2]
[353577232,1739930950908,-500.0,0.00014769,2]
[353577233,1739930950936,-500.0,0.00014851,2]
[353577234,1739930950961,-500.0,0.00014933,2]
[353577235,1739930950986,-500.0,0.00015016,2]
[353577236,1739930951010,-500.0,0.00015098,2]
[353577237,1739930951035,-500.0,0.00015131,2]
[353577238,1739930951059,-500.0,0.00015131,2]
[353577239,1739930951082,-500.0,0.0001515,7]
[353577240,1739930951106,-500.0,0.0001518,2]
[353577241,1739930951130,-500.0,0.00015262,2]
[353577242,1739930951152,-420.0,0.00015335,2]
[353577243,1739930951177,-500.0,0.00015344,2]
[353577244,1739930951201,-500.0,0.00015427,2]
[353577245,1739930951369,-151.0,0.00015473,2]
[353577246,1739930951395,-576.018798,0.000155,5]
[353577247,1739930951426,-500.0,0.00015509,2]
[353577248,1739930951448,-9345.1246205,0.00015531,2]
[353577249,1739930951471,-532.818683,0.00015531,2]
[353577250,1739930951496,-500.0,0.0001559,2]
[353577251,1739930951520,-500.0,0.0001559,2]
[353577252,1739930951551,-500.0,0.00015591,2]
[353577253,1739930951576,-500.0,0.00015673,2]
[353577254,1739930951601,-500.0,0.00015755,2]
[353577255,1739930951624,-103.44587784,0.00015775,2]
[353577315,1739931035725,-502.10488573,0.00013998,2]
[353577316,1739931035735,-503.42374745,0.00013998,2]
[353577317,1739931035745,-501.70254739,0.00013998,2]
[353577318,1739931035755,-500.0,0.00013998,2]
[353577319,1739931035765,-510.1481566,0.00013998,2]
[353577320,1739931035776,-503.41428257,0.00013998,2]
[353577321,1739931035785,-502.89469242,0.00013998,2]
[353577322,1739931035796,-500.0,0.00014164,2]
[353577323,1739931035806,-7438.69753278,0.00014535,2]
[353577324,1739931035815,-1212.054346,0.00015531,2]
[353577325,1739931035825,-160.66002216,0.00015775,2]
[353577326,1739931035834,-500.0,0.00015838,2]
[353577327,1739931035844,-500.0,0.0001592,2]
[353577328,1739931035853,-223.13,0.00016002,2]
[353577329,1739931035863,-501.12771033,0.00016199,2]
[353577330,1739931035873,-2471.01,0.000165,2]
[353577331,1739931035883,-1000.0,0.000168,3]
[353577332,1739931035892,-624.31280611,0.00016904,2]
[353577333,1739931035902,-17254.9910787,0.00016989,2]
[353577334,1739931035912,-500.0,0.00016989,2]
[353577335,1739931035922,-500.0,0.00016999,2]
[353577336,1739931035932,-365.13758672,0.00016999,2]
[353577337,1739931035942,-500.0,0.00016999,2]
[353577338,1739931035951,-500.0,0.00016999,2]
[353577339,1739931035961,-500.0,0.00016999,2]
[353577340,1739931035971,-500.0,0.00016999,2]
[353577341,1739931035980,-500.0,0.00016999,2]
[353577342,1739931035989,-499.0,0.00016999,2]
[353577343,1739931035999,-171.28241599,0.00017003,2]
[353577344,1739931036009,-151.0,0.000171,2]
[353577345,1739931036019,-150.0,0.00017103,2]
[353577346,1739931036029,-1971.0,0.00017103,2]
[353577347,1739931036038,-538.0,0.00017103,2]
[353577348,1739931036048,-2290.0,0.00017103,2]
[353577349,1739931036058,-226.985406,0.00017123,2]
[353577350,1739931036067,-307.4018127,0.00017178,2]
[353577351,1739931036077,-151.0,0.000172,2]
[353577352,1739931036087,-171.28241599,0.00017227,2]
[353577353,1739931036097,-151.0,0.000173,2]
[353577354,1739931036107,-151.0,0.000174,2]
[353577355,1739931036117,-171.28241599,0.00017452,2]
[353577356,1739931036127,-151.0,0.000175,2]
[353577357,1739931036138,-151.0,0.000176,2]
[353577358,1739931036148,-151.0,0.000176,2]
[353577359,1739931036157,-500.0,0.00017601,2]
[353577360,1739931036166,-2000.0,0.00017602,30]
[353577361,1739931036177,-2000.0,0.00017602,30]
[353577362,1739931036186,-844.2,0.00017602,30]
[353577363,1739931036196,-2000.0,0.00017602,30]
[353577364,1739931036205,-2000.0,0.00017602,30]
[353577365,1739931036215,-844.2,0.00017602,30]
[353577366,1739931036228,-2000.0,0.00017602,30]
[353577367,1739931036237,-2000.0,0.00017602,30]
[353577368,1739931036246,-844.2,0.00017602,30]
[353577369,1739931036255,-2000.0,0.00017602,30]
[353577370,1739931036265,-2000.0,0.00017602,30]
[353577371,1739931036274,-844.2,0.00017602,30]
[353577372,1739931036285,-3337.58663501,0.00017602,35]
[353577373,1739931036298,-1704.04230869,0.00017602,35]
[353577374,1739931036308,-500.0,0.00017609,2]
[353577375,1739931036317,-2200.0,0.00017617,2]
[353577376,1739931036327,-282.3335666,0.0001764,2]
[353577377,1739931036338,-171.28241599,0.00017676,2]
[353577378,1739931036348,-325.94064674,0.00017698,2]
[353577379,1739931036358,-187.59,0.00017699,2]
[353577380,1739931036371,-150.0,0.00017699,2]
[353577381,1739931036381,-154.519,0.00017699,2]
[353577382,1739931036390,-253.439,0.00017699,2]
[353577383,1739931036400,-151.0,0.000177,2]
[353577384,1739931036410,-577.83376116,0.00017794,2]
[353577385,1739931036423,-881.46613896,0.00017794,2]
[353577387,1739931038008,-636.66435322,0.00017794,2]
[353577388,1739931038020,-2922.57684035,0.00017794,2]
[353577389,1739931038029,-1000.0,0.000178,10]
[353577390,1739931038038,-151.0,0.000178,2]
[353577391,1739931038047,-1109.76628586,0.0001782,2]
[353577392,1739931038276,-36.52406824,0.0001782,2]
[353577393,1739931038288,-21474.79563267,0.0001782,2]
[353577394,1739931038298,-500.0,0.00017899,2]
[353577395,1739931038307,-188.72902132,0.00017899,2]
[353577396,1739931038316,-214.36681634,0.00017899,2]
[353577397,1739931038326,-3000.0,0.000179,2]
[353577398,1739931038335,-3000.0,0.000179,2]
[353577399,1739931038344,-151.0,0.000179,2]
[353577400,1739931038355,-6275.65378036,0.000179,2]
[353577401,1739931038367,-3564.4701804,0.000179,2]
[353577402,1739931038378,-154.81350398,0.000179,2]
[353577403,1739931038388,-154.81350398,0.000179,2]
[353577404,1739931038399,-154.81350398,0.000179,2]
[353577405,1739931038411,-154.81350398,0.000179,2]
[353577406,1739931038421,-154.81350398,0.000179,2]
[353577407,1739931038431,-154.81350398,0.000179,2]
[353577408,1739931038443,-154.81350398,0.000179,2]
[353577409,1739931038454,-154.81350398,0.000179,2]
[353577410,1739931038464,-154.81350398,0.000179,2]
[353577411,1739931038474,-154.81350398,0.000179,2]
[353577412,1739931038484,-154.81350398,0.000179,2]
[353577413,1739931038494,-154.81350398,0.000179,2]
[353577414,1739931038505,-154.81350398,0.000179,2]
[353577415,1739931038514,-154.81350398,0.000179,2]
[353577416,1739931038526,-154.81350398,0.000179,2]
[353577417,1739931038536,-154.81350398,0.000179,2]
[353577418,1739931038546,-154.81,0.000179,2]
[353577419,1739931038558,-307.04678289,0.000179,2]
[353577420,1739931038569,-307.04678289,0.000179,2]
[353577421,1739931038579,-307.04678289,0.000179,2]
[353577422,1739931038590,-307.04678289,0.000179,2]
[353577423,1739931038601,-307.04678289,0.000179,2]
[353577424,1739931038613,-307.04678289,0.000179,2]
[353577425,1739931038625,-307.04678289,0.000179,2]
[353577426,1739931038636,-307.04678289,0.000179,2]
[353577427,1739931038647,-307.04678289,0.000179,2]
[353577428,1739931038658,-307.04678289,0.000179,2]
[353577429,1739931038667,-307.04678289,0.000179,2]
[353577430,1739931038679,-307.04678289,0.000179,2]
[353577431,1739931038691,-307.04678289,0.000179,2]
[353577432,1739931038701,-171.28241599,0.000179,2]
[353577433,1739931038712,-307.04678289,0.000179,2]
[353577434,1739931038723,-307.04678289,0.000179,2]
[353577435,1739931038734,-307.04678289,0.000179,2]
[353577436,1739931038746,-307.04678289,0.000179,2]
[353577437,1739931038757,-307.04678289,0.000179,2]
[353577438,1739931038768,-307.04678289,0.000179,2]
[353577439,1739931038779,-307.04,0.000179,2]
[353577440,1739931038789,-193.55026735,0.000179,2]
[353577441,1739931038801,-193.55026735,0.000179,2]
[353577442,1739931038812,-193.55026735,0.000179,2]
[353577443,1739931038824,-193.55026735,0.000179,2]
[353577444,1739931038835,-193.55026735,0.000179,2]
[353577445,1739931038846,-193.55026735,0.000179,2]
[353577446,1739931038858,-193.55026735,0.000179,2]
[353577447,1739931038870,-193.55026735,0.000179,2]
[353577448,1739931038880,-193.55026735,0.000179,2]
[353577449,1739931038889,-193.55026735,0.000179,2]
[353577450,1739931038899,-193.55026735,0.000179,2]
[353577451,1739931038910,-193.55026735,0.000179,2]
[353577452,1739931038922,-193.55026735,0.000179,2]
[353577453,1739931039038,-193.55026735,0.000179,2]
[353577454,1739931039055,-193.55026735,0.000179,2]
[353577455,1739931039067,-193.55026735,0.000179,2]
[353577456,1739931039079,-193.55026735,0.000179,2]
[353577457,1739931039093,-193.55026735,0.000179,2]
[353577458,1739931039104,-193.55026735,0.000179,2]
[353577459,1739931039116,-193.55,0.000179,2]
[353577460,1739931039127,-451.61729048,0.000179,2]
[353577461,1739931039139,-451.61729048,0.000179,2]
[353577462,1739931039151,-451.61729048,0.000179,2]
[353577463,1739931039162,-451.61729048,0.000179,2]
[353577464,1739931039174,-451.61729048,0.000179,2]
[353577465,1739931039186,-451.61729048,0.000179,2]
[353577466,1739931039198,-451.61729048,0.000179,2]
[353577467,1739931039210,-451.61729048,0.000179,2]
[353577468,1739931039221,-451.61729048,0.000179,2]
[353577469,1739931039230,-451.61729048,0.000179,2]
[353577470,1739931039242,-451.61729048,0.000179,2]
[353577471,1739931039254,-451.61729048,0.000179,2]
[353577472,1739931039265,-451.61729048,0.000179,2]
[353577473,1739931039276,-451.61729048,0.000179,2]
[353577474,1739931039287,-163.18,0.000179,31]